[Event "Prague Festival Challengers 2024"]
[Site "Prague"]
[Date "2024.03.04"]
[Round "6.5"]
[White "Finek, Vaclav"]
[Black "Santos Latasa, Jaime"]
[Result "0-1"]
[ECO "E11"]
[WhiteElo "2416"]
[BlackElo "2615"]
[Annotator "TA"]
[PlyCount "114"]
[EventDate "2024.02.22"]
[EventType "tourn"]
[EventCountry "CZE"]
[SourceTitle "playchess.com"]
[Source "ChessBase"]
[SourceQuality "1"]
[TimeControl "40/5400+30:1800+30"]

{[%evp 26,114,0,0,7,0,-12,-12,-17,-21,-14,-17,-19,-55,-4,-48,-58,-64,-60,-58,0,-141,-152,-152,-143,-157,-141,-154,-161,-185,-185,-177,-182,-269,-254,-248,-215,-361,-362,-372,-365,-328,-225,-302,-177,-208,-206,-191,-185,-193,-191,-209,-202,-305,-262,-286,-273,-451,-501,-507,-514,-514,-514,-514,-512,-645,-593,-1352,-1209,-1283,-951,-1364,-1329,-1367,-1337,-1333,-1326,-1354,-1110,-1272,-1128,-1553,-1555,-1513,-1485,-1353,-1308,-1082,-925,-778,-750]} 1. d4 {[%emt 0:00:02]} Nf6 {[%emt 0:00:06]} 2. c4 {[%emt 0:00:04]} e6 {[%emt 0:00:06]} 3. Nf3 {[%emt 0:00:03]} d5 {[%emt 0:00:05]} 4. g3 {[%emt 0:00:04]} Bb4+ {[%emt 0:00:06]} 5. Bd2 {[%emt 0:00:03]} Be7 {[%emt 0:00:07]} 6. Bg2 {[%emt 0:00:04]} O-O {[%emt 0:00:06]} 7. O-O {[%emt 0:00:03]} Nbd7 {[%emt 0:00:06]} 8. Bc3 {[%emt 0:00:12] E11: Bogo-Indian.} b6 {[%emt 0:00:18]} 9. cxd5 {[%emt 0:00:05]} exd5 {[%emt 0:00:05]} 10. Bd2 {[%emt 0:00:04]} Bb7 {[%emt 0:00:05]} 11. Nc3 {[%emt 0:00:05]} Re8 {[%emt 0:00:05]} 12. Bf4 {[%emt 0:00:03]} Nf8 {[%emt 0:00:05]} 13. e3 $146 {[%emt 0:00:25]} ({Predecessor:} 13. Rc1 Ne6 14. Be3 c5 15. Ng5 c4 16. Nxe6 fxe6 17. Bf4 a6 18. Qc2 b5 19. a3 Qb6 20. e4 Qxd4 {1-0 Donchenko,A (2627)-Deac,B (2700) Titled Tuesday intern op 03rd Jan Early blitz 2023 (3)}) 13... Ne6 {[%emt 0:00:17]} 14. Rc1 {[%emt 0:00:12]} Bb4 {[%emt 0:01:44]} 15. h4 {[%emt 0:08:38]} h6 {[%emt 0:01:15]} 16. Be5 {[%emt 0:15:14]} Ne4 {[%emt 0:03:03]} 17. h5 {[%emt 0:03:48]} c5 {[%emt 0:08:52]} 18. dxc5 {[%emt 0:05:40]} bxc5 {[%emt 0:04:33]} 19. Qb3 {[%emt 0:06:40]} Bc6 {[%emt 0:10:23]} ({Black should play} 19... Bxc3 $15 20. Bxc3 Qe7) 20. Nxe4 {[%emt 0:06:45]} dxe4 {[%emt 0:03:05]} 21. Rfd1 {[%emt 0:00:10]} Qa5 $1 {[%emt 0:02:24]} 22. Nh4 {[%emt 0:02:53]} Ng5 {[%emt 0:04:00]} (22... Ba4 $15 23. Qc4 Bxd1 24. Rxd1 Ng5) 23. Bc3 {[%emt 0:07:59] [#]} (23. a3 $1 $11 {keeps the balance.} Rxe5 24. axb4) 23... Ba4 $1 $17 {[%emt 0:06:20]} 24. Bxb4 {[%emt 0:00:08] [#]} Qa6 $1 {[%emt 0:01:14]} 25. Bf1 {[%emt 0:12:25]} ({But not} 25. Qa3 $2 cxb4 26. Qxb4 Bxd1 27. Rxd1 Rab8 $19 (27... Qxa2 $2 28. Qd4 $19)) 25... Bxb3 {[%emt 0:01:06]} 26. Bxa6 {[%emt 0:00:05]} Bxd1 {[%emt 0:00:05]} 27. Bxc5 {[%emt 0:00:08]} Bxh5 {[%emt 0:03:29]} 28. Nf5 {[%emt 0:00:29]} Re6 {[%emt 0:02:54]} 29. Bc4 {[%emt 0:03:14]} (29. Ne7+ $142 Kh7 30. Bc8) 29... Rf6 $19 {[%emt 0:01:19]} 30. Ne7+ {[%emt 0:01:46]} Kh8 {[%emt 0:00:09]} 31. b4 {[%emt 0:03:25]} (31. Kf1 {is a better defense.}) 31... Bg4 $19 {[%emt 0:03:57]} 32. Kg2 {[%emt 0:01:01]} Bh3+ {[%emt 0:02:50]} 33. Kg1 {[%emt 0:00:57]} Nf3+ {[%emt 0:00:39]} 34. Kh1 {[%emt 0:00:27]} Nd2 {[%emt 0:01:10]} (34... Rd8 $142 {...Rd2 is the strong threat.} 35. Nd5 Rf5) 35. Kg1 $19 {[%emt 0:03:44]} Nxc4 {[%emt 0:00:39]} 36. Rxc4 {[%emt 0:00:02]} Ra6 {[%emt 0:01:24]} 37. Rxe4 {[%emt 0:00:17]} Be6 {[%emt 0:00:31]} 38. Rd4 {[%emt 0:02:19]} Rxa2 {[%emt 0:00:24]} 39. g4 {[%emt 0:00:11]} (39. Nc6 $142) 39... Rc2 {[%emt 0:00:34]} 40. Bd6 {[%emt 0:02:20]} Rd8 {[%emt 0:04:03]} 41. Nf5 $2 {[%emt 0:30:14]} (41. g5 {was called for.}) 41... Bxf5 $19 {[%emt 0:31:12]} 42. gxf5 {[%emt 0:00:06]} Rc6 {[%emt 0:00:07]} 43. Be7 {[%emt 0:02:15]} Rxd4 {[%emt 0:01:59]} 44. exd4 {[%emt 0:00:05]} Rc3 {[%emt 0:03:10]} 45. Kg2 {[%emt 0:04:46]} f6 {[%emt 0:00:35]} 46. f3 {[%emt 0:00:43]} Kg8 {[%emt 0:00:19]} 47. Kg3 {[%emt 0:00:09]} h5 {[%emt 0:00:50]} 48. Kf4 {[%emt 0:00:56]} a6 {[%emt 0:00:41]} 49. Bc5 {[%emt 0:00:36]} Kf7 {[%emt 0:00:07]} 50. Bd6 {[%emt 0:00:05]} Ke8 {[%emt 0:00:52]} 51. Kg3 {[%emt 0:02:38]} Rc1 {[%emt 0:01:51]} 52. Kg2 {[%emt 0:01:31]} Kd7 {[%emt 0:01:18]} 53. Bf8 {[%emt 0:00:17]} Rc8 {[%emt 0:00:08]} 54. Bc5 {[%emt 0:00:21]} h4 {[%emt 0:00:35]} 55. Kh2 {[%emt 0:00:44]} Rh8 {[%emt 0:00:11]} 56. Kh3 {[%emt 0:00:05]} Rh5 {[%emt 0:00:26]} 57. Bf8 {[%emt 0:00:10]} Ke8 {[%emt 0:00:22]} 0-1

[Event "Prague Festival Challengers 2024"]
[Site "Prague"]
[Date "2024.03.05"]
[Round "7.1"]
[White "Santos Latasa, Jaime"]
[Black "Gurel, Ediz"]
[Result "1/2-1/2"]
[ECO "A11"]
[WhiteElo "2615"]
[BlackElo "2560"]
[Annotator "TA"]
[PlyCount "55"]
[EventDate "2024.02.22"]
[EventType "tourn"]
[EventCountry "CZE"]
[SourceTitle "playchess.com"]
[Source "ChessBase"]
[SourceQuality "1"]
[TimeControl "40/5400+30:1800+30"]

{[%evp 9,55,8,29,11,18,0,10,7,21,7,0,10,0,-10,-13,-9,-6,-10,-23,-44,-41,-53,-51,-31,-26,-72,0,0,25,10,23,8,22,14,39,54,42,34,25,0,57,0,51,0,60,0,35,0]} 1. c4 {[%emt 0:00:02]} c6 {[%emt 0:01:02]} 2. Nf3 {[%emt 0:00:09]} d5 {[%emt 0:00:12]} 3. e3 {[%emt 0:00:05]} Nf6 {[%emt 0:00:06]} 4. Qc2 {[%emt 0:00:05]} e6 {[%emt 0:02:38]} 5. b3 {[%emt 0:00:36]} Bd6 {[%emt 0:00:55]} 6. Bb2 {[%emt 0:00:19]} O-O {[%emt 0:01:37]} 7. Be2 {[%emt 0:01:43]} Qe7 {[%emt 0:02:48]} 8. d4 {[%emt 0:00:51] The position is equal.} b6 {[%emt 0:03:21]} 9. O-O {[%emt 0:00:59]} Bb7 {[%emt 0:00:09]} 10. Nbd2 {[%emt 0:01:33]} Nbd7 {[%emt 0:01:12]} 11. Ne5 {[%emt 0:00:49]} Rac8 {[%emt 0:06:35]} 12. Bd3 {[%emt 0:05:20]} c5 {[%emt 0:10:40]} 13. Nxd7 {[%emt 0:01:27]} Qxd7 {[%emt 0:05:30]} 14. Qd1 {[%emt 0:03:45]} cxd4 {[%emt 0:03:31]} 15. Bxd4 {[%emt 0:07:48]} e5 {[%emt 0:01:50] [#] White must now prevent ...dxc4.} 16. Bb2 {[%emt 0:00:05]} Bb8 {[%emt 0:06:19] ...Rcd8 would now be deadly.} 17. Qe2 {[%emt 0:03:56]} (17. Be2 $11 {is superior.}) 17... dxc4 {[%emt 0:05:09]} (17... d4 $17 {And now ...dxe3 would win.} 18. e4 Bd6) 18. Bxc4 $11 {[%emt 0:01:48]} Qf5 {[%emt 0:03:33]} 19. Rac1 {[%emt 0:03:16]} Rfd8 {[%emt 0:04:04]} 20. Rfd1 {[%emt 0:02:36]} h5 {[%emt 0:04:49]} 21. Nf3 {[%emt 0:03:43]} Rxd1+ {[%emt 0:01:15]} 22. Rxd1 {[%emt 0:01:39]} g5 {[%emt 0:07:04]} 23. Ne1 {[%emt 0:04:52]} g4 {[%emt 0:01:54]} 24. Bd3 {[%emt 0:01:38]} Qe6 {[%emt 0:02:29]} (24... Qg5 $11) 25. Bc4 {[%emt 0:01:17]} Qf5 {[%emt 0:00:09]} 26. Bd3 {[%emt 0:00:05]} Qe6 {[%emt 0:01:00]} 27. Bc4 {[%emt 0:01:29]} Qf5 {[%emt 0:00:05]} 28. Bd3 {[%emt 0:00:05] Weighted Error Value: White=0.19 (very precise) /Black=0.11 (very precise) .  Mistake:       	White=1     	Black=2      Inaccurate:     	White=1     	---        OK:         	White=1     	Black=11     Best:        	White=1     	---} 1/2-1/2

[Event "Prague Festival Challengers 2024"]
[Site "Prague"]
[Date "2024.03.05"]
[Round "7.2"]
[White "Stalmach, Richard"]
[Black "L'Ami, Erwin"]
[Result "0-1"]
[ECO "A13"]
[WhiteElo "2433"]
[BlackElo "2627"]
[Annotator "TA"]
[PlyCount "114"]
[EventDate "2024.02.22"]
[EventType "tourn"]
[EventCountry "CZE"]
[SourceTitle "playchess.com"]
[Source "ChessBase"]
[SourceQuality "1"]
[TimeControl "40/5400+30:1800+30"]

{[%evp 29,114,185,176,159,170,145,145,58,66,31,29,0,21,20,143,4,12,0,0,0,92,93,140,127,166,173,143,148,488,468,416,268,272,298,265,275,252,175,205,186,198,189,176,185,180,183,165,171,166,107,106,107,108,89,115,0,108,70,96,83,87,81,100,0,98,0,102,76,86,0,0,0,37,39,33,-8,-8,-10,-14,-74,-70,-2266,-1899,-1690,-1611,-1365,-1118]} 1. c4 {[%emt 0:00:06]} e6 {[%emt 0:00:50]} 2. g3 {[%emt 0:00:32]} d5 {[%emt 0:00:20]} 3. Bg2 {[%emt 0:00:13]} d4 {[%emt 0:00:45]} 4. Nf3 {[%emt 0:00:27]} c5 {[%emt 0:00:11]} 5. e3 {[%emt 0:00:05]} Nc6 {[%emt 0:01:17]} 6. d3 {[%emt 0:00:41] A13: English Opening: 1...e6.} Nf6 {[%emt 0:01:25]} 7. O-O {[%emt 0:00:23]} h6 {[%emt 0:02:45]} 8. exd4 {[%emt 0:00:12]} cxd4 {[%emt 0:00:14]} 9. Bf4 {[%emt 0:00:37]} g5 $5 {[%emt 0:05:50][%mdl 4] 9...Nd7 gains popularity. A promising side line.} 10. Bd2 {[%emt 0:11:25]} Nd7 $146 {[%emt 0:08:49]} ({Predecessor:} 10... a5 11. Na3 Bg7 12. Nb5 O-O 13. Qe2 e5 14. Nxe5 Re8 15. Nxc6 bxc6 16. Qf3 Ra6 17. Nxd4 Bg4 18. Nxc6 Qc7 19. Bf4 Qc8 20. Bh3 Bxh3 21. Nb8 Rae6 {0-1 Ingebretsen,J (2249)-Vitenberg,N (2246) NOR-chT Elite 1920 2019 (2.1)}) 11. Na3 {[%emt 0:03:16]} g4 {[%emt 0:06:08]} 12. Nh4 {[%emt 0:09:10]} h5 {[%emt 0:05:59]} 13. f3 {[%emt 0:03:13]} Nde5 {[%emt 0:11:42]} 14. Qe2 {[%emt 0:04:47]} Be7 {[%emt 0:09:30]} 15. f4 {[%emt 0:05:23]} Ng6 {[%emt 0:04:00]} 16. Nxg6 {[%emt 0:00:43]} fxg6 {[%emt 0:00:04]} 17. Rae1 {[%emt 0:11:43]} O-O {[%emt 0:03:44]} 18. h3 {[%emt 0:01:27]} (18. Nc2 $16) 18... gxh3 $14 {[%emt 0:02:48]} 19. Bxh3 {[%emt 0:00:09]} e5 {[%emt 0:01:31]} 20. f5 {[%emt 0:05:04]} Bxa3 {[%emt 0:16:15]} (20... Bxf5 $5 21. Bxf5 gxf5 $16) 21. bxa3 {[%emt 0:05:08]} Qe8 {[%emt 0:00:07]} (21... Rxf5 $11 22. Bxf5 Bxf5) 22. Bh6 {[%emt 0:08:55]} (22. g4 $16) 22... Rxf5 $1 $11 {[%emt 0:00:58]} 23. Bxf5 {[%emt 0:00:14]} Bxf5 {[%emt 0:00:10]} 24. Rf2 {[%emt 0:05:53]} Qf7 {[%emt 0:02:58]} (24... Rd8 $11) 25. Ref1 $1 $16 {[%emt 0:02:16]} Kh7 {[%emt 0:04:40]} (25... Qh7 $142 26. Rxf5 gxf5 27. Qxh5 Qf7) 26. Bc1 $16 {[%emt 0:01:38]} Rf8 {[%emt 0:02:10]} 27. g4 $1 {[%emt 0:01:15]} hxg4 {[%emt 0:00:09]} 28. Qxg4 {[%emt 0:01:03]} Qe6 $2 {[%emt 0:02:06][%mdl 8192]} (28... Qd7 $16 {is more resistant.} 29. Qg5 Rf7) 29. Qh4+ $18 {[%emt 0:04:19]} Kg8 {[%emt 0:00:07]} 30. Rh2 {[%emt 0:00:02]} Kf7 {[%emt 0:02:20]} 31. Qh7+ {[%emt 0:00:06]} Ke8 {[%emt 0:00:08]} 32. Qxb7 {[%emt 0:00:04]} Qd7 {[%emt 0:00:31]} 33. Qa8+ {[%emt 0:01:58]} Kf7 {[%emt 0:00:17]} 34. Rh7+ {[%emt 0:00:42]} Ke6 {[%emt 0:00:11]} 35. Qxf8 {[%emt 0:03:15]} Qxh7 {[%emt 0:00:05]} 36. a4 {[%emt 0:03:37]} Qe7 {[%emt 0:02:10]} 37. Qc8+ {[%emt 0:00:53]} Qd7 {[%emt 0:00:07] [#]} 38. Qg8+ $1 {[%emt 0:00:03]} Kd6 {[%emt 0:01:31]} 39. Ba3+ {[%emt 0:03:07]} (39. c5+ $18 Kxc5 40. Qc4+ Kd6 41. Ba3+ Kc7 42. Rc1) 39... Kc7 $16 {[%emt 0:00:06]} 40. Bc5 {[%emt 0:00:22]} Qd8 {[%emt 0:02:12]} 41. Qh7+ {[%emt 0:08:43]} ({But not} 41. Qxd8+ Nxd8 42. Re1 (42. Bxa7 Bxd3 43. Rf6 Nc6 $14) 42... Bxd3) 41... Qd7 {[%emt 0:04:22]} 42. Qg8 {[%emt 0:03:45]} Qd8 $1 {[%emt 0:04:55]} 43. Qf7+ {[%emt 0:15:03]} Qd7 {[%emt 0:03:21]} 44. Qf8 {[%emt 0:00:28]} Qd8 {[%emt 0:02:53] [#]} 45. Qh6 $1 {[%emt 0:00:24]} Qd7 {[%emt 0:01:42]} 46. Qf8 {[%emt 0:00:05]} Qd8 $1 {[%emt 0:00:08]} 47. Qh6 {[%emt 0:04:17]} ({Better is} 47. Qxd8+ $16 Nxd8 48. Re1 (48. Bxa7 Kb7 $16)) 47... Kb7 {[%emt 0:03:46]} (47... Qd7 $1 $11 {keeps the balance.}) 48. Rb1+ {[%emt 0:02:23]} Ka6 {[%emt 0:00:11]} 49. Qh7 {[%emt 0:03:36]} (49. Rd1 $16) 49... Qg5+ $11 {[%emt 0:01:38]} ({Weaker is} 49... Bxd3 50. Qb7+ Ka5 51. Qb5#) 50. Kh1 {[%emt 0:00:02]} Qh5+ {[%emt 0:00:50]} 51. Qxh5 {[%emt 0:00:01]} gxh5 {[%emt 0:00:07]} 52. Rb3 {[%emt 0:00:31]} Na5 {[%emt 0:00:56]} 53. Rb5 {[%emt 0:01:53]} Bxd3 {[%emt 0:01:06]} 54. Bxa7 {[%emt 0:00:04]} (54. Bb4 $11 {remains equal.} Nxc4 55. Rc5) 54... Nxc4 $17 {[%emt 0:00:41]} 55. Bb8 $2 {[%emt 0:00:03][%mdl 8192]} (55. Bc5 $15) 55... Be4+ $19 {[%emt 0:00:29]} 56. Kh2 {[%emt 0:02:12]} d3 {[%emt 0:00:08]} 57. Rb1 {[%emt 0:00:07]} d2 {[%emt 0:00:21]} 0-1

[Event "Prague Festival Challengers 2024"]
[Site "Prague"]
[Date "2024.03.05"]
[Round "7.3"]
[White "Korobov, Anton"]
[Black "Finek, Vaclav"]
[Result "1-0"]
[ECO "A20"]
[WhiteElo "2663"]
[BlackElo "2416"]
[Annotator "TA"]
[PlyCount "161"]
[EventDate "2024.02.22"]
[EventType "tourn"]
[EventCountry "CZE"]
[SourceTitle "playchess.com"]
[Source "ChessBase"]
[SourceQuality "1"]
[TimeControl "40/5400+30:1800+30"]

{[%evp 83,161,62,74,66,66,77,136,137,132,112,143,102,165,145,162,149,167,131,111,118,152,145,173,131,529,514,497,323,520,0,478,248,589,-269,598,585,845,845,753,745,750,735,805,779,678,592,656,621,666,653,737,742,770,686,682,191,183,183,541,533,509,277,451,406,1453,1772,4134,902,29970,29969,29967,29971,29970,29972,29971,29973,29976,29978,29978,29980]} 1. c4 {[%emt 0:00:05]} e5 {[%emt 0:00:09]} 2. d3 {[%emt 0:00:06]} Nf6 {[%emt 0:00:04]} 3. Nf3 {[%emt 0:00:06]} Nc6 {[%emt 0:00:03]} 4. a3 {[%emt 0:00:06]} d5 {[%emt 0:00:09]} 5. cxd5 {[%emt 0:00:07]} Nxd5 {[%emt 0:00:04]} 6. e3 {[%emt 0:00:08] A20: Englische Eröffnung.} a5 {[%emt 0:00:07]} 7. Be2 {[%emt 0:00:34]} Bd6 {[%emt 0:00:06]} 8. O-O {[%emt 0:00:30]} O-O {[%emt 0:00:06]} 9. b3 {[%emt 0:00:44]} Re8 {[%emt 0:11:30]} 10. Bb2 {[%emt 0:00:55]} Be6 {[%emt 0:01:08]} 11. Nbd2 {[%emt 0:00:28]} f6 $146 {[%emt 0:00:18]} ({Predecessor:} 11... Qe7 12. Nc4 f6 13. Rc1 Qf7 14. Nfd2 Bf8 15. Ne4 Nb8 16. Bh5 g6 17. Bf3 Nd7 {1-0 Firouzja,A (2777)-Anand,V (2754) Zagreb SuperUnited Blitz 2023 (15)}) 12. Qc2 {[%emt 0:01:40]} Qd7 {[%emt 0:05:38]} 13. Ne4 {[%emt 0:03:23]} Rad8 {[%emt 0:02:12]} 14. Nc5 {[%emt 0:08:19]} Bxc5 {[%emt 0:00:16]} 15. Qxc5 {[%emt 0:00:03]} Qf7 {[%emt 0:11:10]} 16. Nd2 {[%emt 0:03:00]} Nb6 {[%emt 0:01:33]} 17. Qc2 {[%emt 0:00:50]} Rd7 {[%emt 0:01:12]} 18. Rac1 {[%emt 0:08:45]} Red8 {[%emt 0:02:31]} 19. Rfe1 {[%emt 0:06:52]} Kh8 {[%emt 0:10:40]} 20. Ba1 {[%emt 0:05:03]} Ne7 {[%emt 0:11:25]} 21. Qb1 {[%emt 0:04:06]} Nbd5 {[%emt 0:03:15]} 22. g3 {[%emt 0:04:16]} Qg6 {[%emt 0:02:11]} 23. Kh1 {[%emt 0:05:28]} Bg4 {[%emt 0:03:03]} 24. Bf1 {[%emt 0:00:27]} Qh5 {[%emt 0:01:37]} 25. Rc4 {[%emt 0:06:01]} Nb6 {[%emt 0:03:38]} 26. Rc5 {[%emt 0:02:59]} Nc6 {[%emt 0:00:16]} 27. b4 {[%emt 0:03:27]} axb4 {[%emt 0:01:06]} 28. axb4 {[%emt 0:00:02]} Bf5 {[%emt 0:04:33]} 29. e4 {[%emt 0:01:27]} Bh3 {[%emt 0:01:22]} 30. Be2 {[%emt 0:00:05]} Bg4 {[%emt 0:04:56]} 31. f3 {[%emt 0:00:26]} Be6 {[%emt 0:01:04]} 32. b5 {[%emt 0:01:08]} Ne7 {[%emt 0:00:51]} 33. Rec1 {[%emt 0:04:43]} Qh6 {[%emt 0:02:11]} 34. Nf1 {[%emt 0:02:06]} Na8 {[%emt 0:02:41]} 35. Bc3 {[%emt 0:02:23]} c6 {[%emt 0:04:06]} 36. Ba5 {[%emt 0:02:23]} Re8 {[%emt 0:03:14]} 37. Bd2 {[%emt 0:01:16]} Qh5 {[%emt 0:01:19]} 38. g4 {[%emt 0:01:06]} Qf7 {[%emt 0:00:53]} 39. Ng3 {[%emt 0:00:56]} cxb5 {[%emt 0:02:34]} 40. Rxb5 {[%emt 0:02:29]} Nc6 {[%emt 0:02:47]} 41. Be3 {[%emt 0:30:18]} Nd8 {[%emt 0:02:38]} 42. Nf5 {[%emt 0:00:00]} Nc7 {[%emt 0:04:57]} 43. Rb6 {[%emt 0:00:00]} Bxf5 $1 {[%emt 0:01:58]} 44. gxf5 {[%emt 0:00:00]} Na8 {[%emt 0:04:03]} (44... g6 $142) 45. Rb2 $16 {[%emt 0:00:00]} Nc7 {[%emt 0:01:04]} 46. Rg1 {[%emt 0:00:00]} b5 {[%emt 0:03:49]} 47. Bd1 {[%emt 0:00:00]} Nc6 {[%emt 0:01:14]} (47... Nb7 $16) 48. Rbg2 {[%emt 0:00:00]} Qf8 {[%emt 0:03:33]} 49. Qc1 $1 {[%emt 0:00:00]} Nd4 {[%emt 0:03:03]} 50. Bxd4 {[%emt 0:00:00]} exd4 {[%emt 0:00:12]} 51. Qc6 {[%emt 0:00:00]} Rde7 {[%emt 0:04:03] [#]} 52. Bb3 $1 {[%emt 0:00:00]} Rb8 {[%emt 0:02:44]} 53. Rg3 {[%emt 0:00:00]} Qd8 $2 {[%emt 0:02:22][%mdl 8192]} (53... Rd8 $16 {leistet mehr Widerstand.} 54. f4 Red7) 54. Rh3 $18 {[%emt 0:00:00]} (54. f4 Qe8 55. Qc5 Qd8 $18) 54... Qf8 {[%emt 0:01:44]} 55. Qd6 {[%emt 0:00:00]} Rd8 $2 {[%emt 0:01:25]} (55... h6 56. Rxh6+ (56. Qxd4 Ra8 $16) 56... gxh6) 56. Qc6 {[%emt 0:00:00]} Rb8 $1 {[%emt 0:00:49]} 57. Qc5 {[%emt 0:00:00]} (57. Rxh7+ $142 Kxh7 58. Rg4) 57... Rd7 $2 {[%emt 0:00:48] [#]} (57... h6 58. Rxh6+ (58. Qxd4 Rd8 $16) 58... gxh6 59. Rg8+ (59. Qxd4 $2 Rg7 $19) 59... Qxg8 60. Bxg8 Rg7) 58. Rxh7+ $1 $18 {[%emt 0:00:00]} (58. Qxf8+ Rxf8 59. Ra1 Ra8 60. Rxa8+ Nxa8 $16) 58... Kxh7 {[%emt 0:00:05]} 59. Rg3 {[%emt 0:00:03]} g5 {[%emt 0:00:54]} 60. fxg6+ {[%emt 0:00:06]} Kg7 {[%emt 0:00:19]} 61. Qh5 {[%emt 0:00:35]} Qh8 {[%emt 0:00:31]} 62. Qf5 {[%emt 0:00:02]} Re7 {[%emt 0:00:42]} 63. Rh3 {[%emt 0:00:10]} Qxh3 {[%emt 0:00:21]} 64. Qxh3 {[%emt 0:00:03]} Rh8 {[%emt 0:00:33]} 65. Qg3 {[%emt 0:00:50]} Ne8 {[%emt 0:00:37]} 66. f4 {[%emt 0:01:04]} Rc7 {[%emt 0:00:28]} 67. Qg4 {[%emt 0:02:43]} Re7 {[%emt 0:00:29]} 68. e5 {[%emt 0:00:37]} fxe5 {[%emt 0:00:33]} 69. fxe5 $2 {[%emt 0:00:03]} (69. Qg5 Ra7 70. fxe5 (70. Qxe5+ Nf6 $18)) 69... Rxe5 $18 {[%emt 0:00:28]} 70. Qxd4 {[%emt 0:02:55]} Kf6 $2 {[%emt 0:00:17]} (70... Rhh5 {ist zäher.} 71. Qd7+ Kh6) 71. Bf7 $18 {[%emt 0:00:55]} Ng7 {[%emt 0:00:13]} 72. Qd6+ {[%emt 0:00:39]} Kf5 $2 {[%emt 0:00:36]} (72... Ne6 {ist eine bessere Verteidigung.} 73. Bxe6 Re1+ 74. Kg2 Rxe6) 73. Bd5 {[%emt 0:00:54]} Re1+ {[%emt 0:00:51]} (73... Rxd5 $142 74. Qxd5+ Kxg6 75. Qc6+ (75. Qxb5 Rf8 $18) 75... Kg5 76. Qg2+ (76. Qxb5+ Nf5 $18) 76... Kf6 77. Qb2+ Kg6 78. Qxb5 Nf5 79. Qb6+ Kg5) 74. Kg2 $18 {[%emt 0:00:03]} Re2+ {[%emt 0:00:29]} 75. Kg3 {[%emt 0:02:10]} (75. Kf3 $142 Rhxh2 76. Be4+ Kg5 77. Qd8+ Kh6 78. Qh8+ Kg5 79. Qxg7 Rhf2+ 80. Kg3) 75... Ne6 {[%emt 0:00:37]} 76. Bxe6+ {[%emt 0:02:35]} Rxe6 {[%emt 0:00:06]} 77. Qd5+ {[%emt 0:00:03]} Kf6 {[%emt 0:00:31]} 78. Qd4+ {[%emt 0:00:02]} ({Minderwertig wäre} 78. Qxb5 Rg8 $14) 78... Re5 {[%emt 0:00:07]} 79. g7 {[%emt 0:00:20]} Rhe8 {[%emt 0:00:19]} 80. Kf4 {[%emt 0:00:08]} Kxg7 {[%emt 0:00:54]} 81. Qxe5+ {[%emt 0:00:02]} 1-0

[Event "Prague Festival Challengers 2024"]
[Site "Prague"]
[Date "2024.03.05"]
[Round "7.4"]
[White "Hrbek, Stepan"]
[Black "Mishra, Abhimanyu"]
[Result "0-1"]
[ECO "B97"]
[WhiteElo "2426"]
[BlackElo "2627"]
[Annotator "TA"]
[PlyCount "34"]
[EventDate "2024.02.22"]
[EventType "tourn"]
[EventCountry "CZE"]
[SourceTitle "playchess.com"]
[Source "ChessBase"]
[SourceQuality "1"]
[TimeControl "40/5400+30:1800+30"]

{[%evp 18,34,0,0,8,8,12,12,9,-61,-65,-81,-85,-164,-159,-683,-645,-636,-516]} 1. e4 {[%emt 0:00:13]} c5 {[%emt 0:00:01]} 2. Nf3 {[%emt 0:00:14]} d6 {[%emt 0:00:04]} 3. d4 {[%emt 0:00:32]} cxd4 {[%emt 0:00:06]} 4. Nxd4 {[%emt 0:00:28]} Nf6 {[%emt 0:00:14]} 5. Nc3 {[%emt 0:00:11]} a6 {[%emt 0:00:18]} 6. Bg5 {[%emt 0:00:44]} e6 {[%emt 0:01:31]} 7. f4 {[%emt 0:00:45]} Qb6 {[%emt 0:00:54]} 8. Qd2 {[%emt 0:00:31]} Qxb2 {[%emt 0:00:51]} 9. Rb1 {[%emt 0:00:09]} Qa3 {[%emt 0:00:05]} 10. f5 {[%emt 0:00:36] Hoping for fxe6.} Be7 {[%emt 0:00:35]} 11. fxe6 {[%emt 0:03:12]} Bxe6 {[%emt 0:00:27]} 12. Nxe6 {[%emt 0:12:18]} fxe6 {[%emt 0:00:10] The position is equal.} 13. Rxb7 {[%emt 0:23:49]} (13. Bc4 $1 $11 Nbd7 14. Bxe6) 13... Nbd7 $15 {[%emt 0:08:03][%cal Bb8d7,Bd7c5,Bc5e4][%mdl 32] Threatens to win with ...Nc5.} 14. Bc4 {[%emt 0:05:03] [#]} Nc5 {[%emt 0:17:41][%csl LRb7,LRe4]} 15. Rc7 {[%emt 0:31:20]} (15. Rxe7+ $17 Kxe7 16. O-O (16. e5 dxe5 17. O-O Rhf8 $11)) 15... Bd8 {[%emt 0:13:41]} 16. Bb5+ $2 {[%emt 0:02:15]} (16. Bxf6 $17 Bxc7 (16... Bxf6 17. Nb5 $14) 17. Bxg7) 16... axb5 $19 {[%emt 0:03:26]} 17. Nxb5 {[%emt 0:00:31] [#]} Ncxe4 $1 {[%emt 0:03:32] White did not feel at home in the position after the opening.   Weighted Error Value: White=0.99/Black=0.03 (flawless) .  Loses game:     	White=1     	---        Mistake:       	White=2     	---        OK:         	---       	Black=2      Best:        	White=1     	Black=1} 0-1